Workbook

Sheet MSU
B1: Mika Salmenautio | E1: 7.12.1978 Alajärvi
B2: SUPERPESIS | E2: Runkosarja | I2: Kärkilyönnit (KL), pesänvälit | P2: Runkosarja TOP-30 | U2: Ylempi loppusarja | AB2: Alempi loppusarja | AI2: Arvo-ottelut | AM2: Mitalit
B3: Vuosi | C3: Sija | D3: Seura | E3: OTT | F3: KUN | G3: LÖI | H3: TOI | I3: KL | J3: 0 > 1 | K3: 1 > 2 | L3: 2 > 3 | M3: 3 > k | N3: KL-% | P3: LÖI | Q3: TOI | R3: L+T | S3: KL | U3: OTT | V3: KUN | W3: LÖI | X3: TOI | Y3: KL | Z3: KL-% | AB3: OTT | AC3: KUN | AD3: LÖI | AE3: TOI | AF3: KL | AG3: KL-% | AI3: IL | AJ3: LL | AK3: hSM | AL3: K | AM3: H | AN3: P
B4: 1998 | C4: 10. | D4: AA | E4: 27 | F4: 0 | G4: 25 | H4: 1 | I4: 40 | J4: 1 | K4: 6 | L4: 8 | M4: 25 | N4: 33.1 % | O4: 121 | P4: 26.
B5: 1999 | C5: 9. | D5: AA | E5: 12 | F5: 0 | G5: 4 | H5: 0 | I5: 7 | J5: 0 | K5: 1 | L5: 2 | M5: 4 | N5: 21.9 % | O5: 32
B6: 2000 | C6: 12. | D6: AA | E6: 28 | F6: 0 | G6: 33 | H6: 3 | I6: 76 | J6: 4 | K6: 7 | L6: 32 | M6: 33 | N6: 45.0 % | O6: 169 | P6: 19. | AB6: 7 | AC6: 0 | AD6: 8 | AE6: 2 | AF6: 25 | AG6: 61.0 %
B7: 2001 | C7: 11. | D7: AA | E7: 28 | F7: 2 | G7: 26 | H7: 5 | I7: 62 | J7: 1 | K7: 11 | L7: 22 | M7: 28 | N7: 54.4 % | O7: 114 | AB7: 7 | AC7: 0 | AD7: 6 | AE7: 0 | AF7: 15 | AG7: 42.9 %
B8: 2002 | C8: 2. | D8: AA | F8: ykköspesis | O8: =SUM(O4:O7) -> 436 | AB8: 5 | AC8: 2 | AD8: 7 | AE8: 5 | AF8: 19 | AG8: 46.3 %
B9: 2003
B10: 2004
B11: 2005
B12: 2006
B13: 2007 | C13: 8. | D13: KoU 2 | F13: suomensarja
B14: 2007 | C14: 11. | D14: AA | F14: ykköspesis
B15: 2007 | C15: 3. | D15: KoU | E15: 1 | F15: 0 | G15: 0 | H15: 0 | I15: 0 | J15: 0 | K15: 0 | L15: 0 | M15: 0 | N15: 0.0 % | AN15: 1
B16: 2008 | C16: 3. | D16: KoU 2 | F16: suomensarja
B17: 2008 | C17: 11. | D17: KoU | E17: 0 | F17: 0 | G17: 0 | H17: 0 | I17: 0 | J17: 0 | K17: 0 | L17: 0 | M17: 0 | N17: ---- | AB17: 4 | AC17: 0 | AD17: 3 | AE17: 0 | AF17: 6 | AG17: 28.6 %
B18: Yhteensä | E18: 96 | F18: 2 | G18: 88 | H18: 9 | I18: 185 | J18: 6 | K18: 25 | L18: 64 | M18: 90 | N18: 42.2 % | P18: 0-0-0 | Q18: 0-0-0 | R18: 0-0-0 | S18: 0-0-0 | U18: =SUM(U9:U17) -> 0 | V18: =SUM(V9:V17) -> 0 | W18: =SUM(W9:W17) -> 0 | X18: =SUM(X9:X17) -> 0 | Y18: =SUM(Y9:Y17) -> 0 | Z18: 0.0 % | AB18: =PRODUCT(E24) -> 23 | AC18: =PRODUCT(F24) -> 2 | AD18: =PRODUCT(G24) -> 24 | AE18: =PRODUCT(H24) -> 7 | AF18: =PRODUCT(I24) -> 65 | AG18: =PRODUCT(N24) -> 47.1 % | AI18: 0 | AJ18: 0 | AK18: 0 | AL18: 0 | AM18: 0 | AN18: 1
B19: Pesispörssi | D19: 162.7
B21: URA SUPERISSA | E21: OTT | F21: KUN | G21: LÖI | H21: TOI | I21: KL | K21: ka/L | L21: ka/T | M21: ka/KL | N21: KL-% | P21: ENSIMMÄISET RUNKOSARJASSA
B22: Runkosarja | E22: 96 | F22: 2 | G22: 88 | H22: 9 | I22: 185 | K22: 0.94 | L22: 0.09 | M22: 1.93 | N22: 42.2 % | P22: Ottelu | R22: 10.05. 1998 SoJy - AA 2-1 (1-3, 9-1, 2-0) | AA22: 1. ottelu | AC22: 19 v 5 kk 2 pv
B23: Ylempi loppusarja | P23: Lyöty | R23: 10.05. 1998 SoJy - AA 2-1 (1-3, 9-1, 2-0) | AA23: 1. ottelu | AC23: 19 v 5 kk 2 pv
B24: Alempi loppusarja | E24: 23 | F24: 2 | G24: 24 | H24: 7 | I24: 65 | K24: 1.13 | L24: 0.30 | M24: 2.83 | N24: 47.1 % | P24: Tuotu | R24: 07.06. 1998 AA - SiiPe 0-1 (4-10, 0-0) | AA24: 7. ottelu | AC24: 19 v 6 kk 0 pv
B25: KAIKKI | E25: 119 | F25: 4 | G25: 112 | H25: 16 | I25: 250 | K25: 0.97 | L25: 0.13 | M25: 2.10 | N25: =PRODUCT(250/576) -> 43.4 % | P25: Kunnari | R25: 19.07. 2001 KiPa - AA 2-0 (19-7, 8-1) | AA25: 85. ottelu | AC25: 19 v 1 kk 7 pv
B27: Seurat | D27: AA = Alajärven Ankkurit (1944), kasvattajaseura
D28: KoU = Koskenkorvan Urheilijat (1945)

Sheet MYP, MSS
B1: Mika Salmenautio | E1: 7.12.1978 Alajärvi
B2: YKKÖSPESIS | E2: Runkosarja | L2: Runkosarja TOP-10 | Q2: Jatkosarjat | X2: SUOMENSARJA | AA2: Runkosarja | AH2: Runkosarja TOP-10 | AM2: Jatkosarjat
B3: Vuosi | C3: Sija | D3: Seura | E3: OTT | F3: KUN | G3: LÖI | H3: TOI | I3: KL | J3: KL-% | L3: LÖI | M3: TOI | N3: L+T | O3: KL | Q3: OTT | R3: KUN | S3: LÖI | T3: TOI | U3: KL | V3: KL-% | X3: Vuosi | Y3: Sija | Z3: Seura | AA3: OTT | AB3: KUN | AC3: LÖI | AD3: TOI | AE3: KL | AF3: KL-% | AH3: LÖI | AI3: TOI | AJ3: L+T | AK3: KL | AM3: OTT | AN3: KUN | AO3: LÖI | AP3: TOI | AQ3: KL | AR3: KL-%
B4: 2002 | C4: 2. | D4: AA | E4: 22 | F4: 2 | G4: 45 | H4: 10 | I4: 89 | J4: 56.0 % | K4: 159 | L4: 7. | N4: 8.
B6: 2007 | C6: 11. | D6: AA | E6: 3 | F6: 0 | G6: 5 | H6: 0 | I6: 8 | J6: 33.3 % | K6: 24 | X6: 2007 | Y6: 8. | Z6: KoU 2 | AA6: 10 | AB6: 3 | AC6: 38 | AD6: 5 | AE6: 73 | AF6: 72.3 % | AG6: 101 | AH6: 3. | AJ6: 8.
X7: 2008 | Y7: 3. | Z7: KoU 2 | AA7: 11 | AB7: 3 | AC7: 51 | AD7: 7 | AE7: 72 | AF7: 64.9 % | AG7: 111 | AH7: 1. | AJ7: 1.
B8: YHTEENSÄ | E8: =SUM(E4:E7) -> 25 | F8: =SUM(F4:F7) -> 2 | G8: =SUM(G4:G7) -> 50 | H8: =SUM(H4:H7) -> 10 | I8: =SUM(I4:I7) -> 97 | J8: =PRODUCT(I8/K8) -> 53.0 % | K8: =SUM(K4:K7) -> 183 | Q8: =SUM(Q4:Q7) -> 0 | R8: =SUM(R4:R7) -> 0 | S8: =SUM(S4:S7) -> 0 | T8: =SUM(T4:T7) -> 0 | U8: =SUM(U4:U7) -> 0 | V8: 0.0 % | W8: =SUM(W4:W7) -> 0 | X8: YHTEENSÄ | AA8: =SUM(AA4:AA7) -> 21 | AB8: =SUM(AB4:AB7) -> 6 | AC8: =SUM(AC4:AC7) -> 89 | AD8: =SUM(AD4:AD7) -> 12 | AE8: =SUM(AE4:AE7) -> 145 | AF8: =PRODUCT(AE8/AG8) -> 68.4 % | AG8: =SUM(AG4:AG7) -> 212 | AM8: =SUM(AM4:AM7) -> 0 | AN8: =SUM(AN4:AN7) -> 0 | AO8: =SUM(AO4:AO7) -> 0 | AP8: =SUM(AP4:AP7) -> 0 | AQ8: =SUM(AQ4:AQ7) -> 0 | AR8: 0.0 % | AS8: =SUM(AS4:AS7) -> 0
B10: KAIKKI OTTELUT | E10: OTT | F10: KUN | G10: LÖI | H10: TOI | I10: KL | J10: KL-% | L10: ka/L | M10: ka/T | N10: ka/l+t | O10: ka/kl | R10: Seurat | T10: AA = Alajärven Ankkurit (1944), kasvattajaseura
B11: SUPERPESIS | E11: 119 | F11: 4 | G11: 112 | H11: 16 | I11: 250 | J11: 43.6 % | K11: =PRODUCT(I11/J11) -> 573.3944954 | L11: =PRODUCT((F11+G11)/E11) -> 0.97 | M11: =PRODUCT(H11/E11) -> 0.13 | N11: =PRODUCT((F11+G11+H11)/E11) -> 1.11 | O11: =PRODUCT(I11/E11) -> 2.10 | T11: KoU = Koskenkorvan Urheilijat (1945)
B12: YKKÖSPESIS | E12: =PRODUCT(E8+Q8) -> 25 | F12: =PRODUCT(F8+R8) -> 2 | G12: =PRODUCT(G8+S8) -> 50 | H12: =PRODUCT(H8+T8) -> 10 | I12: =PRODUCT(I8+U8) -> 97 | J12: =PRODUCT(I12/K12) -> 53.0 % | K12: =PRODUCT(K8+W8) -> 183 | L12: =PRODUCT((F12+G12)/E12) -> 2.08 | M12: =PRODUCT(H12/E12) -> 0.40 | N12: =PRODUCT((F12+G12+H12)/E12) -> 2.48 | O12: =PRODUCT(I12/E12) -> 3.88
B13: SUOMENSARJA | E13: =PRODUCT(AA8+AM8) -> 21 | F13: =PRODUCT(AB8+AN8) -> 6 | G13: =PRODUCT(AC8+AO8) -> 89 | H13: =PRODUCT(AD8+AP8) -> 12 | I13: =PRODUCT(AE8+AQ8) -> 145 | J13: =PRODUCT(I13/K13) -> 68.4 % | K13: =PRODUCT(AG8+AS8) -> 212 | L13: =PRODUCT((F13+G13)/E13) -> 4.52 | M13: =PRODUCT(H13/E13) -> 0.57 | N13: =PRODUCT((F13+G13+H13)/E13) -> 5.10 | O13: =PRODUCT(I13/E13) -> 6.90
B14: YHTEENSÄ | E14: =SUM(E11:E13) -> 165 | F14: =SUM(F11:F13) -> 12 | G14: 251 | H14: 38 | I14: 492 | J14: =PRODUCT(I14/K14) -> 50.8 % | K14: =SUM(K11:K13) -> 968.3944954 | L14: =PRODUCT((F14+G14)/E14) -> 1.59 | M14: =PRODUCT(H14/E14) -> 0.23 | N14: =PRODUCT((F14+G14+H14)/E14) -> 1.82 | O14: =PRODUCT(I14/E14) -> 2.98

Sheet Arvo-ottelut
B1: ITÄ - LÄNSI - KORTTI
B2: Mika Salmenautio | C2: 7.12.1978 Alajärvi
B3: A - POJAT | C3: Itä - Länsi, tulos | D3: Joukkue | E3: Seura | G3: V | H3: T | I3: H | J3: Up. | K3: Lj. | L3: Palk. | M3: O | N3: K | O3: L | P3: T | Q3: KL | R3: 1 | S3: 2 | T3: 3 | U3: k | V3: KL-% | W3: Pelinjohtaja | X3: Yleisöä
B4: 27.06. 1998 Sotkamo | C4: 1-0 (2-2, 6-2) | D4: Länsi | E4: AA | I4: 1 | K4: jok | M4: 1 | Q4: 2/5 | S4: 1/1 | T4: 1/3 | U4: 0/1 | V4: 40.0 % | W4: Olli Viljaranta | X4: 3518

Sheet Kärkilyönnit
B1: KÄRKILYÖNNIT RUNKOSARJASSA | V1: VUOSITTAISET SIJOITUKSET TOP - 30
G2: 0 > 1 | J2: 1 > 2 | M2: 2 > 3 | P2: 3 > k | S2: Yhteensä
B3: Vuosi | C3: Sija | D3: Seura | E3: OTT | F3: KL | G3: YHT | H3: % | I3: KL | J3: YHT | K3: % | L3: KL | M3: YHT | N3: % | O3: KL | P3: YHT | Q3: % | R3: KL | S3: YHT | T3: % | V3: Vuosi | W3: Sija | X3: Seura | Y3: 0 > 1 | Z3: 1 > 2 | AA3: 2 > 3 | AB3: 3 > k | AC3: KL
B4: 1998 | C4: 10. | D4: AA | E4: 27 | F4: 1 | G4: 3 | H4: =PRODUCT(F4/G4) -> 33.3 % | I4: 6 | J4: 13 | K4: =PRODUCT(I4/J4) -> 46.2 % | L4: 8 | M4: 30 | N4: =PRODUCT(L4/M4) -> 26.7 % | O4: 25 | P4: 75 | Q4: =PRODUCT(O4/P4) -> 33.3 % | R4: 40 | S4: =PRODUCT(G4+J4+M4+P4) -> 121 | T4: 33.1 % | V4: 1998 | W4: 10. | X4: AA | AB4: 26.
B5: 1999 | C5: 9. | D5: AA | E5: 12 | F5: 0 | G5: 0 | H5: 0.0 % | I5: 1 | J5: 1 | K5: =PRODUCT(I5/J5) -> 100.0 % | L5: 2 | M5: 5 | N5: =PRODUCT(L5/M5) -> 40.0 % | O5: 4 | P5: 26 | Q5: =PRODUCT(O5/P5) -> 15.4 % | R5: 7 | S5: =PRODUCT(G5+J5+M5+P5) -> 32 | T5: 21.9 % | V5: 1999 | W5: 9. | X5: AA
B6: 2000 | C6: 14. | D6: AA | E6: 28 | F6: 4 | G6: 5 | H6: 80.0 % | I6: 7 | J6: 19 | K6: 36.8 % | L6: 32 | M6: 53 | N6: 60.4 % | O6: 33 | P6: 92 | Q6: 35.9 % | R6: 76 | S6: 169 | T6: 45.0 % | V6: 2000 | W6: 14. | X6: AA | AB6: 19.
B7: 2001 | C7: 12. | D7: AA | E7: 28 | F7: 1 | G7: 6 | H7: 16.7 % | I7: 11 | J7: 17 | K7: 64.7 % | L7: 22 | M7: 35 | N7: 62.9 % | O7: 28 | P7: 56 | Q7: 50.0 % | R7: 62 | S7: 114 | T7: 54.4 % | V7: 2001 | W7: 12. | X7: AA
B8: **** | V8: ****
B9: 2007 | C9: 5. | D9: KoU | E9: 1 | F9: 0 | G9: 0 | H9: 0.0 % | I9: 0 | J9: 1 | K9: 0.0 % | L9: 0 | M9: 0 | N9: 0.0 % | O9: 0 | P9: 1 | Q9: 0.0 % | R9: 0 | S9: 2 | T9: 0.0 % | V9: 2007 | W9: 5. | X9: KoU
B10: Yhteensä | E10: =SUM(E4:E9) -> 96 | F10: =SUM(F4:F9) -> 6 | G10: =SUM(G4:G9) -> 14 | H10: =PRODUCT(F10/G10) -> 42.9 % | I10: =SUM(I4:I9) -> 25 | J10: =SUM(J4:J9) -> 51 | K10: =PRODUCT(I10/J10) -> 49.0 % | L10: =SUM(L4:L9) -> 64 | M10: =SUM(M4:M9) -> 123 | N10: =PRODUCT(L10/M10) -> 52.0 % | O10: =SUM(O4:O9) -> 90 | P10: =SUM(P4:P9) -> 250 | Q10: =PRODUCT(O10/P10) -> 36.0 % | R10: =SUM(R4:R9) -> 185 | S10: =SUM(S4:S9) -> 438 | T10: =PRODUCT(R10/S10) -> 42.2 %
